bitfinex-derivatives/quotes_ETHF0:USTF0_20240922
["timestamp","ask_amount","ask_price","bid_price","bid_amount"]
[1727032609230,3.5891,2573.0,2572.9,0.98]
[1727032609925,3.5891,2573.0,2572.9,1.36864]
[1727032611031,3.5891,2573.0,2572.9,0.98]
[1727032611917,3.5891,2573.0,2572.9,1.36864]
[1727032613328,3.5891,2573.0,2572.9,0.98]
[1727032615219,3.5891,2573.0,2572.9,1.36864]
[1727032617131,3.5891,2573.0,2572.9,0.98]
[1727032619025,3.5891,2573.0,2572.8,0.3968]
[1727032619222,0.78494,2572.9,2572.8,0.3968]
[1727032619425,1.18094,2572.9,2572.8,0.3968]
[1727032619930,1.18094,2572.9,2572.7,1.36867]
[1727032620632,0.7923,2572.9,2572.7,0.98]
[1727032621133,0.7923,2572.9,2572.7,1.36866]
[1727032621729,1.51762922,2573.1,2572.8,1.36865]
[1727032621932,3.2078,2573.0,2572.9,0.37]
[1727032622127,3.2078,2573.0,2572.9,1.35]
[1727032622531,3.2078,2573.0,2572.9,0.37]
[1727032622735,4.72542922,2573.0,2572.9,0.37]
[1727032623525,5.11405922,2573.0,2572.9,0.37]
[1727032623831,4.72542922,2573.0,2572.6,3.13351021]
[1727032624034,2.31562922,2572.9,2572.7,0.3696]
[1727032624240,3.08707922,2572.9,2572.7,0.3696]
[1727032624826,3.08707922,2572.9,2572.7,0.75827]
[1727032625933,3.08707922,2572.9,2572.7,0.3696]
[1727032626136,2.69842922,2572.9,2572.7,0.75827]
[1727032627127,3.08706922,2572.9,2572.7,0.75827]
[1727032628742,3.08706922,2572.9,2572.8,0.98]
[1727032628931,2.69842922,2572.9,2572.8,0.98]
[1727032629132,3.08706922,2572.9,2572.8,0.98]
[1727032629332,1.56944,2572.9,2572.8,0.98]
[1727032629833,2.69877381,2572.9,2572.8,0.98]
[1727032630033,3.08741381,2572.9,2572.8,0.98]
[1727032630235,1.56944,2572.9,2572.8,0.98]
[1727032630937,1.1808,2572.9,2572.8,0.98]
[1727032631634,1.56944,2572.9,2572.8,0.98]
[1727032632347,4.77724,2572.9,2572.8,0.98]
[1727032633348,6.41312251,2572.9,2572.8,0.98]
[1727032633539,6.80176251,2572.9,2572.8,0.98]
[1727032634236,0.38866,2572.8,2572.6,2.75921021]
[1727032634540,2.02452251,2572.7,2572.4,1.40414021]
[1727032634734,4.726434,2572.6,2572.5,0.3887]
[1727032635039,5.23232251,2572.6,2572.5,0.3887]
[1727032635433,3.2078,2572.6,2572.5,0.3887]
[1727032635633,3.6105,2572.6,2572.5,0.3887]
[1727032635833,3.6105,2572.6,2572.4,1.74491]
[1727032636135,1.51816146,2572.5,2572.4,1.74491]
[1727032636531,5.12866146,2572.6,2572.4,1.74491]
[1727032636737,1.51816146,2572.5,2572.4,1.74491]
[1727032637045,5.12866146,2572.6,2572.4,1.74491]
[1727032637937,1.51816146,2572.5,2572.4,1.74491]
[1727032638136,1.51816146,2572.5,2572.4,1.3562]
[1727032638435,5.12866146,2572.6,2572.4,1.3562]
[1727032638940,5.12866146,2572.6,2572.4,1.74491]
[1727032639845,5.12866146,2572.6,2572.4,1.3562]
[1727032642939,4.72596146,2572.6,2572.4,1.3562]
[1727032643140,3.2078,2572.6,2572.5,4.2759]
[1727032643337,3.2078,2572.6,2572.5,6.55279034]
[1727032643536,3.2078,2572.6,2572.5,5.53736013]
[1727032643737,3.2078,2572.6,2572.5,5.78051708]
[1727032643936,3.2078,2572.6,2572.5,5.29443741]
[1727032644849,3.2078,2572.6,2572.5,4.90573741]
[1727032645046,3.2078,2572.6,2572.5,5.29443741]
[1727032646549,3.2078,2572.6,2572.5,1.40723741]
[1727032648645,1.88616146,2572.8,2572.5,2.38723741]
[1727032648946,2.27482146,2572.8,2572.5,2.38723741]
[1727032649549,1.88616146,2572.8,2572.5,2.38723741]
[1727032649748,2.27482146,2572.8,2572.5,2.38723741]
[1727032650351,1.88616146,2572.8,2572.5,2.38723741]
[1727032651555,3.2078,2572.6,2572.5,2.38723741]
[1727032654554,3.2078,2572.6,2572.5,1.99853741]
[1727032654853,3.2078,2572.6,2572.5,2.38723741]
[1727032655447,3.2078,2572.6,2572.5,1.99853741]
[1727032655659,3.2078,2572.6,2572.5,1.01853741]
[1727032655950,3.2078,2572.6,2572.5,2.38723741]
[1727032658554,3.2078,2572.6,2572.5,7.53646606]
[1727032658756,3.2078,2572.6,2572.5,8.53121301]
[1727032658952,3.2078,2572.6,2572.5,9.1388064]
[1727032660252,3.2078,2572.6,2572.5,8.53121301]
[1727032660555,3.2078,2572.6,2572.5,8.65270867]
[1727032660949,3.2078,2572.6,2572.5,9.1387835]
[1727032662257,3.2078,2572.6,2572.5,9.74471476]
[1727032662555,3.2078,2572.6,2572.5,9.74472773]
[1727032663751,3.2078,2572.6,2572.5,9.74478226]
[1727032665461,3.2078,2572.6,2572.5,9.74478097]
[1727032666063,3.2078,2572.6,2572.5,5.25177729]
[1727032666655,0.3891,2572.7,2572.6,0.38869]
[1727032666852,0.3891,2572.7,2572.6,4.13635635]
[1727032667152,0.3891,2572.7,2572.6,3.65060482]
[1727032667352,0.3891,2572.7,2572.6,3.65060649]
[1727032667563,0.3891,2572.7,2572.6,4.13670504]
[1727032667956,0.3891,2572.7,2572.6,2.87418122]
[1727032667957,1.90726146,2572.7,2572.6,2.87418122]
[1727032668159,1.90726146,2572.7,2572.6,2.38810515]
[1727032671163,1.90726146,2572.7,2572.6,2.87418134]
[1727032671666,5.11506146,2572.7,2572.6,2.87418185]
[1727032672167,5.11506146,2572.7,2572.6,4.13683156]
[1727032672663,3.5969,2572.7,2572.6,4.13682113]
[1727032673265,5.11506146,2572.7,2572.6,3.74813826]
[1727032673568,5.11506146,2572.7,2572.6,2.48549134]
[1727032674069,5.11506146,2572.7,2572.6,1.99941515]
[1727032674450,5.11506146,2572.7,2572.6,2.38810515]
[1727032674658,5.11506146,2572.7,2572.6,1.99941515]
[1727032675064,5.11506146,2572.7,2572.6,1.50549122]
[1727032675962,3.5969,2572.7,2572.6,1.50549122]
[1727032676154,3.5969,2572.7,2572.6,2.76814864]
[1727032676362,3.5969,2572.7,2572.6,3.15683864]
[1727032676560,3.5969,2572.7,2572.6,3.15682583]
[1727032677761,3.5969,2572.7,2572.6,1.65133461]
[1727032677968,3.5969,2572.7,2572.6,2.1374197]
[1727032678375,3.5969,2572.7,2572.6,3.15692304]
[1727032678669,3.5969,2572.7,2572.6,2.1374197]
[1727032679770,3.5969,2572.7,2572.6,4.27220498]
[1727032680171,3.5969,2572.7,2572.6,2.76822087]
[1727032680367,3.5969,2572.7,2572.6,1.01949117]
[1727032680368,9.39093146,2572.7,2572.6,1.01949117]
[1727032680666,0.38872,2572.4,2572.2,2.54668467]
[1727032680870,5.92658934,2572.3,2572.2,1.01949117]
[1727032681258,5.92658934,2572.3,2572.2,1.99949117]
[1727032682358,5.92658934,2572.3,2572.2,0.98]
[1727032683367,4.4076,2572.3,2572.2,0.98]
[1727032685669,4.4076,2572.3,2572.2,1.36875]
[1727032685972,4.4076,2572.3,2572.2,0.98]
[1727032691869,4.4076,2572.3,2572.1,1.40825117]
[1727032691870,4.4076,2572.3,2572.1,0.38876]
[1727032692072,4.4076,2572.3,2572.2,0.98]
[1727032698083,4.4076,2572.3,2572.0,1.79096117]
[1727032698275,4.4076,2572.3,2572.2,0.98]
[1727032698974,1.1998,2572.3,2572.2,0.98]
[1727032699184,4.4076,2572.3,2572.2,0.98]
[1727032703683,4.79634,2572.3,2572.0,1.79096117]
[1727032703889,4.79634,2572.3,2572.2,0.98]
[1727032705783,4.79634,2572.3,2572.0,1.79096117]
[1727032705784,9.2756,2572.3,2572.0,0.3827]
[1727032705982,0.38876,2572.2,2572.0,0.3827]
[1727032707385,0.38876,2572.1,2572.0,0.3827]
[1727032707685,0.38875,2572.2,2572.0,0.3827]
[1727032707891,6.31532934,2572.3,2572.0,0.3827]
[1727032708091,0.38876,2572.2,2572.0,0.3827]
[1727032708398,0.38876,2572.1,2572.0,0.3827]
[1727032711083,1.51898934,2572.2,2572.0,0.3827]
[1727032711084,1.90774934,2572.2,2572.0,0.3827]
[1727032711397,1.51898934,2572.2,2572.0,0.3827]
[1727032711587,0.38876,2572.1,2572.0,0.3827]
[1727032713793,1.51898934,2572.2,2571.9,0.3717]
[1727032713992,3.6129,2572.0,2571.9,0.3717]
[1727032714190,3.6129,2572.0,2571.8,1.36881]
[1727032714386,0.7661,2571.9,2571.7,0.77842]
[1727032714788,1.15489,2571.9,2571.7,0.77842]
[1727032714993,1.15489,2571.9,2571.7,0.3896]
[1727032715196,0.38881,2571.8,2571.5,0.38884]
[1727032715497,3.2078,2571.6,2571.5,0.38884]
[1727032715903,0.4,2571.7,2571.6,0.38884]
[1727032716292,0.4,2571.7,2571.5,0.38885]
[1727032716497,3.2078,2571.6,2571.5,0.38885]
[1727032718307,3.2078,2571.6,2571.4,1.76356]
[1727032718602,3.59664,2571.6,2571.4,1.3747]
[1727032718805,0.3845,2571.5,2571.4,0.98]
[1727032720903,3.2078,2571.6,2571.5,0.38885]
[1727032721103,0.3845,2571.9,2571.6,0.38883]
[1727032721303,0.3845,2571.9,2571.8,0.98]
[1727032722207,0.77329,2571.9,2571.8,0.98]
[1727032723411,0.77329,2571.9,2571.7,2.1497]
[1727032723604,0.3845,2571.9,2571.7,2.1497]
[1727032724198,0.7733,2571.9,2571.7,1.1697]
[1727032724397,0.7733,2571.9,2571.5,1.36884]
[1727032724606,3.2078,2571.7,2571.6,0.7658]
[1727032726901,3.5765,2571.7,2571.6,0.7658]
[1727032732906,0.3845,2571.9,2571.6,1.15464]
[1727032733109,0.7711,2571.9,2571.6,1.15464]
[1727032733815,1.1599,2571.9,2571.6,0.7658]
[1727032737016,1.1599,2571.9,2571.6,1.15464]
[1727032737220,3.2078,2571.7,2571.6,0.7658]
[1727032737713,3.59662,2571.7,2571.6,0.3826]
[1727032737914,0.38884,2571.6,2571.4,1.17866]
[1727032738117,1.18354,2571.6,2571.4,1.57786]
[1727032738716,1.18354,2571.6,2571.4,1.189]
[1727032741207,0.7947,2571.6,2571.4,1.189]
[1727032741416,1.18354,2571.6,2571.4,1.189]
[1727032741620,0.7947,2571.6,2571.4,1.18227]
[1727032741922,3.2078,2571.7,2571.4,1.57047]
[1727032742118,3.59662,2571.7,2571.4,1.57047]
[1727032742819,3.59662,2571.7,2571.4,1.1816]
[1727032746326,0.38884,2571.6,2571.4,1.1816]
[1727032746619,5.11561934,2571.7,2571.4,1.1816]
[1727032747510,0.38884,2571.6,2571.4,1.1816]
[1727032747818,0.38887,2571.4,2571.2,1.01949117]
[1727032748016,0.3682,2571.3,2571.2,1.41449117]
[1727032748222,0.3682,2571.3,2571.2,0.395]
[1727032750720,0.75708,2571.3,2571.2,0.395]
[1727032751619,0.3682,2571.3,2571.2,0.395]
[1727032751823,0.75708,2571.3,2571.2,0.395]
[1727032756230,3.96488,2571.3,2571.2,0.395]
[1727032756430,3.96488,2571.3,2571.1,0.98]
[1727032756821,3.96488,2571.3,2571.1,1.36891]
[1727032757723,1.88828934,2571.5,2571.3,0.38887]
[1727032758026,3.5771,2571.5,2571.4,2.1304]
[1727032758426,5.09608934,2571.5,2571.4,1.1504]
[1727032758724,5.48028934,2571.5,2571.4,1.1504]
[1727032759523,3.9613,2571.5,2571.4,1.1504]
[1727032759725,5.48028934,2571.5,2571.4,1.1504]
[1727032762720,5.86913934,2571.5,2571.4,1.1504]
[1727032763320,3.9613,2571.5,2571.4,1.1504]
[1727032764628,5.47649945,2571.5,2571.4,1.1504]
[1727032766032,1.51519945,2571.6,2571.5,0.38885]
[1727032766231,1.51519945,2571.7,2571.6,0.38884]
[1727032766420,4.72305578,2571.8,2571.6,1.36883]
[1727032766628,3.2078,2571.8,2571.6,1.36883]
[1727032766826,3.2078,2571.8,2571.7,0.3929]
[1727032768027,4.72305578,2571.8,2571.7,0.3929]
[1727032768226,5.11186578,2571.8,2571.7,0.3929]
[1727032768631,4.72305578,2571.8,2571.7,0.3929]
[1727032771527,3.2078,2571.8,2571.7,0.3929]
[1727032771731,4.72305578,2571.8,2571.7,0.3929]
[1727032777339,0.38884,2571.7,2571.4,2.18867995]
[1727032777534,3.2078,2571.5,2571.4,2.18867995]
[1727032777834,3.2078,2571.5,2571.4,1.79981995]
[1727032783432,3.2078,2571.5,2571.3,1.01901995]
[1727032783734,0.76297,2571.4,2571.1,1.42041995]
[1727032783938,0.3671,2571.3,2571.1,1.42041995]
[1727032784133,0.7668,2571.3,2571.1,1.42041995]
[1727032784437,1.15569,2571.3,2571.0,1.99901995]
[1727032784641,3.5967,2571.2,2570.9,1.40795995]
[1727032784838,5.11195578,2571.2,2570.9,1.40795995]
[1727032785337,0.4046,2571.1,2570.9,0.38894]
[1727032785641,0.4046,2571.1,2571.0,0.38893]
[1727032786633,0.4046,2571.1,2570.9,0.38893]
[1727032787640,0.4046,2571.1,2570.8,1.99901995]
[1727032787944,3.2078,2570.9,2570.8,2.38797995]
[1727032788244,3.2078,2570.9,2570.8,1.36896]
[1727032789130,3.2078,2570.9,2570.8,0.98]
[1727032789842,0.79352,2571.1,2570.8,0.98]
[1727032790036,3.2078,2570.9,2570.8,0.98]
[1727032792745,3.2078,2570.9,2570.7,2.18538995]
[1727032792746,7.0974,2570.9,2570.7,1.79641995]
[1727032793040,3.2078,2570.9,2570.7,0.7774]
[1727032793339,3.5799,2570.9,2570.7,0.7774]
[1727032793545,3.5799,2570.9,2570.7,1.16637]
[1727032795837,3.5799,2570.9,2570.7,2.14637]
[1727032797044,3.5799,2570.9,2570.7,1.7574]
[1727032797244,0.3919,2570.8,2570.7,1.7574]
[1727032798043,0.3919,2570.8,2570.7,2.14637]
[1727032798349,0.3919,2570.8,2570.5,0.41588995]
[1727032798544,0.3919,2570.8,2570.7,0.98]
[1727032800741,0.3919,2570.8,2570.7,1.36897]
[1727032801847,3.2078,2570.9,2570.8,0.38896]
[1727032802039,1.51525578,2571.2,2570.9,0.38893]
[1727032802040,0.3883,2571.1,2570.9,0.38893]
[1727032802340,0.3883,2571.1,2571.0,0.98]
[1727032802846,0.3883,2571.1,2570.9,1.3503]
[1727032803839,0.3883,2571.1,2570.9,1.73924]
[1727032804545,0.3883,2571.1,2570.9,1.3503]
[1727032804934,0.3883,2571.1,2570.9,1.73924]
[1727032805946,0.3883,2571.1,2570.9,1.3503]
[1727032806449,0.3883,2571.1,2570.9,1.73924]
[1727032806749,0.3883,2571.1,2570.9,1.3503]
[1727032808147,0.77722,2571.1,2570.9,1.3503]
[1727032808348,0.3883,2571.1,2570.9,0.3703]
[1727032809242,0.77722,2571.1,2570.9,0.3703]
[1727032809441,0.77722,2571.1,2570.8,0.38895]
[1727032809647,3.2078,2570.9,2570.8,0.38895]
[1727032810644,0.3883,2571.1,2570.7,1.77366]
[1727032810853,0.77722,2571.1,2570.7,1.3847]
[1727032811360,0.77722,2571.1,2570.8,0.38896]
[1727032811855,0.77722,2571.1,2570.7,1.77367]
[1727032812050,0.77722,2571.1,2570.8,0.38896]
[1727032812743,3.2078,2570.9,2570.7,1.77366]
[1727032813150,3.2078,2570.9,2570.8,0.38896]
[1727032814055,3.2078,2570.9,2570.7,1.77367]
[1727032814856,3.2078,2570.9,2570.7,0.79367]
[1727032815048,3.2078,2570.9,2570.8,0.38896]
[1727032817448,1.16391,2571.1,2570.8,0.38896]
[1727032818251,3.2078,2570.9,2570.8,0.38896]
[1727032818659,3.2078,2570.9,2570.7,1.3847]
[1727032818660,3.2078,2570.9,2570.7,1.77367]
[1727032818853,3.2078,2570.9,2570.8,0.38896]
[1727032828962,3.2078,2570.9,2570.7,1.93322993]
[1727032829159,0.3693,2570.8,2570.6,1.90582993]
[1727032829362,0.3693,2570.8,2570.7,3.88367102]
[1727032830263,1.88455578,2570.8,2570.7,3.88367102]
[1727032830970,5.09235578,2570.8,2570.7,3.88367102]
[1727032831471,5.09235578,2570.8,2570.7,3.27562408]
[1727032831669,5.09235578,2570.8,2570.7,3.39723735]
[1727032831870,5.09235578,2570.8,2570.7,3.88367801]
[1727032832267,5.09235578,2570.8,2570.7,3.88478381]
[1727032833270,5.09235578,2570.8,2570.7,3.27673299]
[1727032833566,5.09235578,2570.8,2570.7,3.39834112]
[1727032834071,5.09235578,2570.8,2570.7,3.88478015]
[1727032834673,14.29033593,2570.8,2570.7,0.48643903]
[1727032834868,14.29033593,2570.8,2570.4,1.52852993]
[1727032834869,0.389,2570.6,2570.4,1.52852993]
[1727032835077,6.01082666,2570.5,2570.3,1.52852993]
[1727032835368,1.51718384,2570.4,2570.3,0.38904]
[1727032835572,1.51718384,2570.4,2570.3,2.25855483]
[1727032835766,5.50508384,2570.5,2570.3,2.65975483]
[1727032835965,1.51718384,2570.4,2570.3,0.79024]
[1727032836169,1.51718384,2570.4,2570.3,2.05161619]
[1727032836366,5.50508384,2570.5,2570.3,2.05124242]
[1727032836570,5.50508384,2570.5,2570.3,0.79024]
[1727032836874,5.50508384,2570.5,2570.3,0.4012]
[1727032837270,5.25943,2570.4,2570.0,1.72852993]
[1727032837473,5.25943,2570.4,2570.0,0.2]
[1727032837474,3.2078,2570.1,2570.0,0.2]
[1727032838273,3.5837,2570.1,2570.0,0.2]
[1727032838661,3.5837,2570.1,2570.0,0.58908]
[1727032839171,4.5637,2570.1,2569.9,1.52852993]
[1727032839374,7.56125087,2570.1,2569.8,0.3891]
[1727032839573,5.09925087,2570.1,2569.7,1.74472]
[1727032839874,3.2078,2569.8,2569.7,1.74472]
[1727032840061,3.2078,2569.8,2569.7,3.00467096]
[1727032840267,3.2078,2569.8,2569.7,5.2468]
[1727032840579,0.3759,2570.1,2569.7,5.63593]
[1727032840773,3.5837,2570.1,2569.9,0.98]
[1727032842172,4.48492666,2570.4,2570.0,5.26027]
[1727032842173,3.2078,2570.4,2570.0,5.26027]
[1727032842374,3.2078,2570.4,2570.2,0.98]
[1727032842569,3.2078,2570.4,2570.1,0.7739]
[1727032842970,3.59682,2570.4,2570.1,0.7739]
[1727032845579,3.2078,2570.4,2570.1,0.7739]
[1727032845880,3.59682,2570.4,2570.1,0.7739]
[1727032846789,3.59682,2570.4,2570.1,0.3804]
[1727032847478,3.59683,2570.4,2570.1,0.3804]
[1727032847985,0.38904,2570.3,2570.1,0.3804]
[1727032848481,0.3759,2570.2,2570.1,0.3804]
[1727032852082,0.3759,2570.2,2569.9,1.77069]
[1727032852286,0.3794,2570.1,2569.9,1.77069]
[1727032852978,3.5872,2570.1,2569.8,0.3963]
[1727032853289,0.3775,2570.0,2569.8,0.3963]
[1727032854978,0.4002,2569.9,2569.8,0.3963]
[1727032855582,3.608,2569.9,2569.8,0.3963]
[1727032858288,0.3794,2570.1,2569.8,0.3963]
[1727032858592,0.76848,2570.1,2569.8,0.3963]
[1727032860585,0.3794,2570.1,2569.8,0.3963]
[1727032860789,0.76847,2570.1,2569.8,0.3963]
[1727032861793,3.9766,2570.2,2569.8,0.78541]
[1727032861794,4.36565,2570.2,2569.8,0.78541]
[1727032862088,4.36565,2570.2,2569.8,0.3963]
[1727032862293,4.36565,2570.2,2569.8,0.78541]
[1727032862495,4.36565,2570.2,2569.8,0.3963]
[1727032862892,0.38907,2570.1,2569.8,0.3963]
[1727032863096,3.2078,2569.9,2569.8,0.3963]
[1727032867393,3.2078,2569.9,2569.7,0.98]
[1727032867591,3.2078,2569.9,2569.7,1.3686]
[1727032867995,4.0015,2569.9,2569.7,1.3686]
[1727032868599,4.0015,2569.9,2569.7,0.3886]
[1727032870199,0.3839,2569.8,2569.7,0.3886]
[1727032872398,4.0015,2569.9,2569.8,0.38911]
[1727032872594,3.2078,2570.2,2569.8,1.95277]
[1727032872800,4.3621,2570.5,2570.2,0.38905]
[1727032873101,4.0011,2570.5,2570.3,0.393]
[1727032873299,4.0011,2570.5,2570.3,0.7681]
[1727032876294,5.51665087,2570.5,2570.3,0.7681]
[1727032876501,4.0011,2570.5,2570.3,0.7681]
[1727032877201,4.0011,2570.5,2570.3,1.15713]
[1727032878407,3.2078,2570.5,2570.4,0.78882]
[1727032880402,3.2078,2570.5,2570.4,0.3998]
[1727032880594,3.2078,2570.5,2570.4,0.78882]
[1727032884500,3.2078,2570.5,2570.4,0.3998]
[1727032887204,3.2078,2570.5,2570.3,1.15713]
[1727032889006,3.2078,2570.5,2570.3,0.7681]
[1727032889209,3.2078,2570.5,2570.3,1.15713]
[1727032890603,3.2078,2570.5,2570.4,0.38902]
[1727032891000,3.2078,2570.5,2570.4,5.25942]
[1727032892707,3.2078,2570.5,2570.4,1.36902]
[1727032892909,3.2078,2570.8,2570.4,0.38902]
[1727032893510,4.5768,2570.5,2570.1,0.38906]
[1727032893707,1.1428,2570.4,2570.1,0.38906]
[1727032894414,1.1428,2570.4,2570.0,3.70169993]
[1727032894809,1.1428,2570.4,2570.1,0.38906]
[1727032895313,1.1428,2570.4,2570.0,3.70169993]
[1727032895614,1.1428,2570.4,2570.0,2.17317]
[1727032896312,1.1428,2570.4,2570.0,3.70169993]
[1727032897408,1.53182,2570.4,2570.0,3.70169993]
[1727032897712,1.1428,2570.4,2570.1,0.38906]
[1727032897913,1.1428,2570.4,2570.0,3.70169993]
[1727032898412,1.1428,2570.4,2570.0,2.17317]
[1727032899010,1.1428,2570.4,2570.0,3.70169993]
[1727032899420,1.1428,2570.4,2570.0,2.17317]
[1727032900516,1.1428,2570.4,2570.1,0.38906]
[1727032901812,1.1428,2570.4,2570.0,3.70169993]
[1727032902711,4.3506,2570.4,2570.0,3.70169993]
[1727032903009,4.3506,2570.4,2570.0,2.17317]
[1727032903217,4.3506,2570.4,2570.1,0.38906]
[1727032904511,4.3506,2570.4,2570.0,2.17317]
[1727032904716,4.3506,2570.4,2570.0,3.70169993]
[1727032905607,4.3506,2570.4,2570.0,2.17317]
[1727032906017,4.73962,2570.4,2570.0,1.7841]
[1727032906216,0.98,2570.3,2569.9,1.52852993]
[1727032906516,4.57687,2570.1,2569.7,6.44034993]
[1727032906713,1.1979,2570.0,2569.7,2.89622993]
[1727032906916,1.1979,2570.0,2569.8,0.38911]
[1727032907704,1.1979,2570.0,2569.7,3.28534993]
[1727032908316,1.1979,2570.0,2569.8,0.38911]
[1727032908623,1.1979,2570.0,2569.7,3.28534993]
[1727032911616,1.1979,2570.0,2569.8,0.38911]
[1727032911816,1.1979,2570.0,2569.7,3.28534993]
[1727032913418,0.3912,2570.0,2569.8,0.98]
[1727032914014,0.3912,2570.0,2569.9,0.3891]
[1727032915111,0.3912,2570.0,2569.8,0.98]
[1727032915112,0.3912,2570.0,2569.8,1.3691]
[1727032916426,0.3912,2570.0,2569.9,0.3891]
[1727032917517,0.3912,2570.0,2569.8,0.3891]
[1727032918223,0.3912,2570.0,2569.8,1.40857189]
[1727032918419,0.3912,2570.0,2569.9,0.3891]
[1727032918616,0.3912,2570.0,2569.8,1.40857189]
[1727032918819,0.3912,2570.0,2569.8,1.01947189]
[1727032919025,0.3912,2570.0,2569.9,1.01947189]
[1727032919422,0.3912,2570.0,2569.9,0.3891]
[1727032919629,0.3912,2570.0,2569.9,1.40857189]
[1727032919925,3.2078,2570.1,2570.0,0.38908]
[1727032920123,3.2078,2570.1,2570.0,2.19046596]
[1727032920324,3.2078,2570.1,2570.0,2.57016596]
[1727032920827,2.8442,2570.3,2570.1,0.38906]
[1727032923029,3.8242,2570.3,2570.0,2.57015596]
[1727032923223,3.2078,2570.1,2570.0,0.76877]
[1727032923418,3.2078,2570.1,2570.0,0.3797]
[1727032924726,7.099,2570.1,2569.8,1.01938596]
[1727032924924,0.747,2570.0,2569.8,1.01938596]
[1727032925129,0.4018,2569.9,2569.8,1.01938596]
[1727032932127,3.6096,2569.9,2569.8,1.01938596]
[1727032935326,3.2078,2569.9,2569.8,4.25656764]
[1727032935535,3.2078,2570.0,2569.8,5.2522662]
[1727032935738,3.2078,2570.0,2569.9,1.01952743]
[1727032936031,3.2078,2570.0,2569.9,0.3891]
[1727032936235,3.2078,2570.0,2569.9,1.40862743]
[1727032936833,3.2078,2570.0,2569.9,0.3891]
[1727032937136,2.46,2570.2,2569.9,1.40861743]
[1727032937731,3.2078,2570.0,2569.9,1.01952743]
[1727032939137,4.39189,2570.0,2569.9,1.01952743]
[1727032939734,4.39189,2570.0,2569.8,1.01952743]
[1727032939735,4.9828,2570.0,2569.8,1.01952743]
[1727032939942,0.4016,2569.9,2569.8,1.01952743]
[1727032941239,4.6819,2569.9,2569.8,1.01952743]
[1727032941539,6.19745087,2569.9,2569.7,1.01952743]
[1727032941838,5.80835087,2569.9,2569.6,1.40866743]
[1727032942033,3.2078,2569.7,2569.6,1.40866743]
[1727032942228,3.2078,2569.7,2569.6,2.25814462]
[1727032942434,3.2078,2569.7,2569.6,3.78667487]
[1727032942737,3.2078,2569.7,2569.6,3.78667612]
[1727032942940,3.2078,2569.7,2569.6,1.64984205]
[1727032943332,3.2078,2569.7,2569.6,2.28096278]
[1727032943539,3.2078,2569.7,2569.6,2.78923729]
[1727032943738,3.2078,2569.7,2569.6,1.26070736]
[1727032943941,3.2078,2569.7,2569.6,2.2809264]
[1727032945224,3.2078,2569.7,2569.6,2.28089006]
[1727032946333,3.2078,2569.7,2569.6,1.26070736]
[1727032946530,3.2078,2569.7,2569.6,2.28091671]
[1727032946837,3.2078,2569.7,2569.6,1.26070736]
[1727032947034,3.2078,2569.7,2569.6,3.39754181]
[1727032947734,3.2078,2569.7,2569.6,2.28095123]
[1727032948228,3.2078,2569.7,2569.6,3.39753334]
[1727032948544,3.2078,2569.7,2569.6,1.02029742]
[1727032948837,3.2078,2569.7,2569.6,2.28111213]
[1727032950234,3.2078,2569.7,2569.6,2.28113612]
[1727032950735,3.2078,2569.7,2569.6,3.26934031]
[1727032950936,3.2078,2569.7,2569.6,2.66103612]
[1727032951140,3.2078,2569.7,2569.6,1.40019742]
[1727032951527,3.2078,2569.7,2569.6,2.24923626]
[1727032951731,3.2078,2569.7,2569.6,2.24921977]
[1727032951938,3.2078,2569.7,2569.6,2.66136416]
[1727032952127,3.2078,2569.7,2569.6,3.26965786]
[1727032952331,3.2078,2569.7,2569.6,2.66135841]
[1727032952735,3.2078,2569.7,2569.6,3.26966835]
[1727032952933,3.2078,2569.7,2569.6,3.26957175]
[1727032953247,3.2078,2569.7,2569.6,2.66126181]
[1727032953945,3.2078,2569.7,2569.6,2.24914125]
[1727032954242,3.2078,2569.7,2569.6,2.66118573]
[1727032954743,3.2078,2569.7,2569.6,3.05032573]
[1727032955040,3.2078,2569.7,2569.6,3.5584999]
[1727032957839,3.2078,2569.7,2569.6,3.55830887]
[1727032958038,3.2078,2569.7,2569.6,4.16659434]
[1727032958345,3.2078,2569.7,2569.6,4.65321877]
[1727032959045,3.2078,2569.7,2569.6,4.16659434]
[1727032959251,3.2078,2569.7,2569.6,3.55830887]
[1727032959545,3.2078,2569.7,2569.6,2.63807723]
[1727032960245,3.2078,2569.7,2569.6,4.16660716]
[1727032960448,3.2078,2569.7,2569.6,2.02977894]
[1727032960646,3.2078,2569.7,2569.6,3.05005195]
[1727032960951,3.2078,2569.7,2569.6,4.16659866]
[1727032961139,3.2078,2569.7,2569.6,2.63806873]
[1727032961447,3.2078,2569.7,2569.6,4.16659866]
[1727032961744,3.2078,2569.7,2569.6,4.65321377]
[1727032961947,3.2078,2569.7,2569.6,4.16659127]
[1727032962639,3.2078,2569.7,2569.6,4.65322305]
[1727032962842,1.51555087,2570.0,2569.9,0.3891]
[1727032963037,4.72335087,2570.2,2570.1,0.38907]
[1727032963651,4.72335087,2570.2,2570.1,0.78847]
[1727032963850,3.2078,2570.2,2570.1,0.78847]
[1727032964054,4.72335087,2570.2,2570.1,0.78847]
[1727032964646,3.2078,2570.2,2570.1,0.78847]
[1727032964851,3.2078,2570.2,2570.1,1.80864857]
[1727032965047,3.2078,2570.2,2570.1,3.06913712]
[1727032965252,3.2078,2570.2,2570.1,3.06914003]
[1727032965454,3.2078,2570.2,2570.1,1.80864857]
[1727032966352,3.97455087,2570.4,2570.1,1.80864857]
[1727032966545,3.2078,2570.2,2570.1,1.80864857]
[1727032967355,3.2078,2570.2,2570.1,0.78847]
[1727032967857,3.2078,2570.2,2570.1,1.80864857]
[1727032968051,3.2078,2570.2,2570.1,0.78847]
[1727032969756,1.51555087,2570.3,2570.2,0.38905]
[1727032969956,1.51555087,2570.3,2570.1,0.3994]